Cogmind - Beta 15 @@@ ROGUE MODE // 2025.08.12 @ 07:35:02 Player: shapeshifter Result: Destroyed by C-35 Carver with Carbide Saw Performance ------------- Evolutions (5) 2500 Regions Visited (9) 1800 Robots Destroyed (21) 105 Value Destroyed (497) 497 Prototype IDs (0) 0 Alien Tech Used (0) 0 Bonus (500) 500 TOTAL SCORE: 5402 Bonus ------- Entered DSFs 500 Cogmind --------- Core Integrity 0/1000 Matter 30/300 Energy 52/100 System Corruption 7% Temperature Cool (0) Movement Core (50) Location -5/Factory Parts ------- > --- POWER (2) -------- (None) > --- PROPULSION (7) --- (None) > --- UTILITY (6) ------ Advanced Sensor Array Advanced Hacking Suite > --- WEAPON (2) ------- (None) > --- INVENTORY (5) ---- Reinforced Quantum Reactor Improved Transmission Jammer Peak State ------------ > --- POWER ------------ (None) > --- PROPULSION ------- Gravmag Array Gravmag Array Gravmag Array > --- UTILITY ---------- Layered Light Armor Plating Advanced Hacking Suite > --- WEAPON ----------- Power Maul > --- INVENTORY -------- Reinforced Quantum Reactor Advanced Sensor Array Improved Transmission Jammer [Rating: 46] Favorites ----------- Power Improved Ion Engine Engine Improved Ion Engine Power Core Light Nuclear Core Propulsion Improved Hover Unit Treads Light Treads Wheel Compact Wheel Hover Unit Improved Hover Unit Flight Unit Field Propulsion Drive Utility Seismic Detector Device Seismic Detector Storage Small Storage Unit Processor Improved Signal Interpreter Hackware Advanced Hacking Suite Protection Hardened Light Armor Plating Weapon Assault Rifle Energy Gun Medium Laser Energy Cannon Heavy Ion Cannon Ballistic Gun Assault Rifle Ballistic Cannon Advanced Assault Cannon Launcher EMP Blaster Impact Weapon Power Maul Slashing Weapon Mining Claw Build | -11 -10 -9 -8 -7 -7 -6 -5 -5 -5 ------- Run | Yrd Mat Mat Mat Fac DSF Fac Fac Was Fac Slots Evolved 10 | . . 2 2 2 . 2 2 . . Power 1 | . . . . . . . 1 . . Propulsion 5 | . . 2 . 1 . 1 1 . . Utility 4 | . . . 2 1 . 1 . . . Weapon . | . . . . . . . . . . Parts Attached 43 | 7 6 6 4 2 6 3 1 . 8 Power 4 | 1 1 1 . . . 1 . . . Engine 3 | 1 1 . . . . 1 . . . Core 1 | . . 1 . . . . . . . Reactor . | . . . . . . . . . . Propulsion 14 | 2 1 4 . 2 . . 1 . 4 Treads 4 | 2 . . . 2 . . . . . Leg . | . . . . . . . . . . Wheel 1 | . 1 . . . . . . . . Hover 7 | . . 4 . . . . . . 3 Flight 2 | . . . . . . . 1 . 1 Utility 13 | 2 1 1 2 . 3 1 . . 3 Device 3 | 1 . . 1 . . . . . 1 Storage 5 | 1 1 1 . . 2 . . . . Processor 2 | . . . 1 . . 1 . . . Hackware 1 | . . . . . . . . . 1 Protection 2 | . . . . . 1 . . . 1 Artifact . | . . . . . . . . . . Weapon 12 | 2 3 . 2 . 3 1 . . 1 Energy Gun 1 | 1 . . . . . . . . . Energy Cannon 1 | . . . . . 1 . . . . Ballistic Gun 4 | 1 1 . 2 . . . . . . Ballistic Cannon 2 | . . . . . 1 1 . . . Launcher 2 | . 1 . . . 1 . . . . Special Weapon . | . . . . . . . . . . Impact Weapon 1 | . . . . . . . . . 1 Slashing Weapon 1 | . 1 . . . . . . . . Piercing Weapon . | . . . . . . . . . . Special Melee Weapon . | . . . . . . . . . . Unidentified Prototypes . | . . . . . . . . . . Parts Lost 14 | . . 1 . . 5 5 . 2 1 Power 1 | . . . . . 1 . . . . Propulsion 7 | . . 1 . . . 4 . 1 1 Utility 4 | . . . . . 2 1 . 1 . Weapon 2 | . . . . . 2 . . . . Highest Loss Streak 5 | . . 1 . . 3 5 . 2 1 To Critical Strikes . | . . . . . . . . . . Average Backups 7 | 5 7 8 10 10 10 12 4 4 4 Power . | . . 1 1 1 . . . . 1 Propulsion 2 | 3 4 1 2 2 . . . . . Utility 2 | . 1 3 5 5 6 6 1 2 2 Weapon 1 | . 1 2 2 2 3 4 2 1 . Tool/Special . | . . . . . . . . . . Unused Backups 22 | . 7 1 . . . 7 1 1 5 Power 3 | . 2 . . . . . . . 1 Propulsion 4 | . 3 . . . . 1 . . . Utility 10 | . . 1 . . . 5 1 . 3 Weapon 5 | . 2 . . . . 1 . 1 1 Tool/Special . | . . . . . . . . . . Average Slot Usage (%) 67 | . 100 89 85 76 95 52 14 12 8 Engine 5 | . 14 . . . 3 4 . . . Core 2 | . . 11 9 7 3 . . . . Treads 8 | . 19 . . . 15 10 . . . Wheel 2 | . 8 . . . . . . . . Hover 10 | . . 33 26 23 23 12 . . 3 Device 9 | . 14 11 16 15 15 5 . . . Storage 7 | . 14 11 9 7 7 5 . . . Processor 2 | . . . 7 7 7 7 11 8 . Ballistic Gun 12 | . 21 22 16 15 8 . . . . Launcher 1 | . 5 . . . 2 . . . . Peak Build Rating 46 | 7 10 16 24 28 32 29 12 13 46 Average Rating 13 | 5 9 14 19 25 28 23 9 9 12 On Entrance 12 | . 7 9 14 24 28 22 6 12 2 Naked Turns 266 | . . . . . . . . 10 256 Heaviest Build 92 | 15 92 20 23 23 40 37 . . 7 Greatest Support 42 | 40 40 28 21 42 42 42 7 7 40 Greatest Overweight (x) 5 | . 5 . 1 1 . 1 . . . Average Overweight (x) . | . 2 . . . . . . . . Largest Inventory Capacity 25 | 8 25 25 10 10 20 15 5 5 5 Average Capacity 11 | 7 18 9 10 10 13 13 5 5 5 Most Carried 15 | 8 9 10 10 10 15 15 5 5 5 Average Carried 7 | 6 7 8 10 9 10 12 4 4 4 Final Capacity 25 | 8 25 10 10 10 15 5 5 5 5 Final Carried 15 | 7 9 10 10 8 15 5 4 5 2 Class Distribution -------------------- 100% | Mutant Dominant Class ---------------- Mutant | -10/Materials Mutant | -9/Materials Mutant | -8/Materials Mutant | -7/Factory Mutant | -7/DSF Mutant | -6/Factory Mutant | -5/Factory Mutant | -5/Waste Mutant | -5/Factory Resources | -11 -10 -9 -8 -7 -7 -6 -5 -5 -5 ----------- Run | Yrd Mat Mat Mat Fac DSF Fac Fac Was Fac Matter Collected 734 | 327 167 80 . . 64 . . . 96 Remotely . | . . . . . . . . . . Salvage Created 993 | 166 201 80 . . 531 . . . 15 Parts 52 | 17 22 7 . . 6 . . . . Haulers Intercepted . | . . . . . . . . . . Recyclers Shooed . | . . . . . . . . . . Parts Field Recycled . | . . . . . . . . . . Retrieved Matter . | . . . . . . . . . . Parts Self-Destructed . | . . . . . . . . . . Prevented . | . . . . . . . . . . Kills | -11 -10 -9 -8 -7 -7 -6 -5 -5 -5 ------- Run | Yrd Mat Mat Mat Fac DSF Fac Fac Was Fac Combat Hostiles Destroyed 10 | . 6 1 . . 3 . . . . Guns 5 | . 3 1 . . 1 . . . . AOE 5 | . 3 . . . 2 . . . . Classes Destroyed 10 | 3 4 2 . . 1 . . . . Worker 1 | 1 . . . . . . . . . Builder 1 | . 1 . . . . . . . . Tunneler 6 | 5 . . . . . . . . 1 Recycler 1 | 1 . . . . . . . . . Operator 1 | . 1 . . . . . . . . Watcher 1 | . . 1 . . . . . . . Swarmer 3 | . 3 . . . . . . . . Grunt 3 | . 3 . . . . . . . . Sentry 1 | . . 1 . . . . . . . Specialist 3 | . . . . . 3 . . . . Best Kill Streak 4 | 3 4 1 . . 2 . . . 1 Combat Bots Only 3 | . 3 1 . . 2 . . . . Max Kills in Single Turn 3 | 2 3 1 . . 1 . . . 1 Gunslinging . | . . . . . . . . . . Exploded 3 | . 3 . . . 1 . . . . Melee . | . . . . . . . . . . Uniques/NPCs Destroyed . | . . . . . . . . . . Combat | -11 -10 -9 -8 -7 -7 -6 -5 -5 -5 -------- Run | Yrd Mat Mat Mat Fac DSF Fac Fac Was Fac Hostile Shots Fired 266 | . 21 17 14 . 63 24 2 2 123 Missed 120 | . 9 9 9 . 22 8 1 . 62 Hits 146 | . 12 8 5 . 41 16 1 2 61 Melee 22 | . . . . . 3 8 . 2 9 Projectile 124 | . 12 8 5 . 38 8 1 . 52 AOE 5 | . . . . . . 2 . . 3 Critical Strikes 13 | . . . . . 3 2 . 2 6 Damage Taken 3470 | . 246 105 30 . 805 619 68 81 1516 Core 1435 | . . 14 . . 71 343 68 81 858 Absorbed by Shields . | . . . . . . . . . . Core Remaining (%) 90 | 100 100 96 100 . 89 59 . . . Volleys Fired 58 | 19 18 7 2 . 10 2 . . . Largest 2 | 2 2 2 2 . 2 1 . . . Hottest 70 | 70 53 40 40 . 50 40 . . . Shots Fired 103 | 38 31 14 4 . 14 2 . . . Gun 91 | 38 27 14 4 . 8 . . . . Cannon 3 | . . . . . 1 2 . . . Launcher 9 | . 4 . . . 5 . . . . Special . | . . . . . . . . . . Kinetic 75 | 19 27 14 4 . 9 2 . . . Thermal 19 | 19 . . . . . . . . . Explosive . | . . . . . . . . . . Electromagnetic 9 | . 4 . . . 5 . . . . Robot Hit Streak 15 | 5 7 8 2 . 15 2 . . . Robot Miss Streak 5 | 5 1 3 2 . 2 . . . . Penetration Max . | . . . . . . . . . . Secondary Targets . | . . . . . . . . . . Shots Hit Robots 69 | 20 23 10 2 . 11 2 . . 1 Core Hits 31 | 8 13 3 . . 6 1 . . . Critical Kills . | . . . . . . . . . . Critical Parts Destroyed 1 | . . . . . . . . . 1 Critical Strikes 4 | 3 . . . . . . . . 1 Burn 3 | 3 . . . . . . . . . Smash 1 | . . . . . . . . . 1 Melee Attacks 7 | . 4 . 1 . . . . . 2 Impact 2 | . . . . . . . . . 2 Slashing 5 | . 4 . 1 . . . . . . Piercing . | . . . . . . . . . . Sneak Attacks 1 | . . . . . . . . . 1 Combat Hostiles . | . . . . . . . . . . Follow-up Attacks . | . . . . . . . . . . Damage Inflicted 1425 | 268 467 128 27 . 316 59 . . 160 Guns 838 | 268 253 128 27 . 162 . . . . Cannons 84 | . . . . . 25 59 . . . Explosions 307 | . 189 . . . 118 . . . . Melee 153 | . 25 . . . . . . . 128 Ramming 43 | . . . . . 11 . . . 32 Kinetic 787 | 133 253 128 27 . 187 59 . . . Thermal 205 | 135 70 . . . . . . . . Explosive . | . . . . . . . . . . Electromagnetic 237 | . 119 . . . 118 . . . . Impact 128 | . . . . . . . . . 128 Slashing 25 | . 25 . . . . . . . . Piercing . | . . . . . . . . . . Highest Corruption 7 | . . . . . 1 . . . 7 Average Corruption 5 | . . . . . 1 . . . 5 Corruption Purged . | . . . . . . . . . . Corruption Blocked . | . . . . . . . . . . Effects 9 | . . . . . . . . . 9 Message Errors 1 | . . . . . . . . . 1 Matter Fused 4 | . . . . . . . . . 4 Heat Flow Errors 1 | . . . . . . . . . 1 Energy Discharges 1 | . . . . . . . . . 1 Parts Rejected 1 | . . . . . . . . . 1 Data Loss (minor) 1 | . . . . . . . . . 1 Overload Shots . | . . . . . . . . . . Overflow Damage 148 | . 20 . . . . . . . 128 Projectiles . | . . . . . . . . . . Explosions 20 | . 20 . . . . . . . . Melee 128 | . . . . . . . . . 128 Knockbacks 5 | . . . . . 1 2 . . 2 Impact 2 | . . . . . . . . . 2 Kinetic 3 | . . . . . 1 2 . . . Secondary . | . . . . . . . . . . Self-Inflicted Damage 137 | . 101 . . . 22 . . . 14 Shots 4 | . 1 . . . 3 . . . . Rammed 12 | . . . . . 2 . . . 10 Targets Rammed 12 | . . . . . 2 . . . 10 Kicked . | . . . . . . . . . . Crushed . | . . . . . . . . . . Highest Temperature 109 | 36 6 5 . . . . . . 109 Average Temperature 14 | 13 3 3 . . . . . . 69 Received Heat Transfer 312 | . 81 30 18 . 63 24 9 . 87 Siege Activations . | . . . . . . . . . . Martial Activations . | . . . . . . . . . . Shielding Activations . | . . . . . . . . . . Robots Disrupted . | . . . . . . . . . . Combat Hostiles . | . . . . . . . . . . Robots Corrupted 1 | . . . . . . . . . 1 Combat Hostiles . | . . . . . . . . . . Parts Fried 1 | . . . . . . . . . 1 Impact Corruptions 4 | . . . . . . . . . 4 Robots Melted . | . . . . . . . . . . Combat Hostiles . | . . . . . . . . . . Parts Melted . | . . . . . . . . . . Heat Transferred 729 | 629 100 . . . . . . . . Parts Sabotaged . | . . . . . . . . . . Parts Stolen . | . . . . . . . . . . Parts Stripped . | . . . . . . . . . . Power Chain Reactions 1 | . 1 . . . . . . . . Alert | -11 -10 -9 -8 -7 -7 -6 -5 -5 -5 ------- Run | Yrd Mat Mat Mat Fac DSF Fac Fac Was Fac Maximum Alert Level 1 | . . . . . . . . . 1 Low Security (%) 98 | 100 100 100 100 100 100 100 100 100 93 Level 1 1 | . . . . . . . . . 6 Level 2 . | . . . . . . . . . . Level 3 . | . . . . . . . . . . Level 4 . | . . . . . . . . . . Level 5 . | . . . . . . . . . . High Security . | . . . . . . . . . . Max Security . | . . . . . . . . . . Peak Influence 257 | 10 123 54 79 26 128 51 15 1 257 Initial 51 | . . 10 14 26 18 51 . 1 . Average 29 | 1 34 19 29 26 57 26 4 . 45 Influence Increases 1063 | 35 221 109 140 . 130 . 34 . 394 Destroy 0b10 Robot/C 200 | . 120 20 . . 60 . . . . Destroy 0b10 Robot/NC 55 | 35 10 5 . . . . . . 5 Destroy Leader 52 | . 30 12 . . 10 . . . . Successful Hack 64 | . . 12 19 . . . 19 . 14 Disable Machine 60 | . 30 . 15 . 15 . . . . Destroy Structure 32 | . 31 . 1 . . . . . . Partial Spotted 30 | . . . 15 . . . 15 . . Lose Combat Pursuer 570 | . . 60 90 . 45 . . . 375 Influence Decreases 806 | 35 196 100 115 33 58 98 29 5 137 Entered New Map 127 | . . 15 20 33 8 47 . 4 . Time Decay 608 | 35 196 85 95 . . 40 29 1 127 Lost Part 71 | . . . . . 50 11 . . 10 Squads Dispatched 12 | . 5 . 2 . 1 . 1 . 3 Investigation 4 | . 3 . . . . . . . 1 Extermination 1 | . . . . . . . . . 1 Reinforcement 7 | . 2 . 2 . 1 . 1 . 1 Assault . | . . . . . . . . . . Garrison . | . . . . . . . . . . Intercept . | . . . . . . . . . . Searches Triggered . | . . . . . . . . . . Construction Impeded . | . . . . . . . . . . Haulers Reinforced . | . . . . . . . . . . Active Scanning Responses . | . . . . . . . . . . Cargo Convoy Interrupts . | . . . . . . . . . . Stealth | -11 -10 -9 -8 -7 -7 -6 -5 -5 -5 --------- Run | Yrd Mat Mat Mat Fac DSF Fac Fac Was Fac Distress Signals 2 | . . . 1 . . . . . 1 Communications Jammed . | . . . . . . . . . . Distress Signals . | . . . . . . . . . . Times Spotted 95 | . 10 8 9 . 10 9 7 6 36 Peak Tracking Total 13 | . 3 4 5 . 4 9 6 5 13 Tactical Retreats 17 | . . 2 4 . 3 . . . 8 Traps | -11 -10 -9 -8 -7 -7 -6 -5 -5 -5 ------- Run | Yrd Mat Mat Mat Fac DSF Fac Fac Was Fac Traps Triggered 11 | . 1 . 4 . 2 1 2 . 1 Indirectly 1 | . . . . . 1 . . . . Trap Hack Attempts . | . . . . . . . . . . Triggered . | . . . . . . . . . . Disarmed . | . . . . . . . . . . Reprogrammed . | . . . . . . . . . . Reused . | . . . . . . . . . . Traps Extracted . | . . . . . . . . . . Installed . | . . . . . . . . . . Triggered . | . . . . . . . . . . Machines | -11 -10 -9 -8 -7 -7 -6 -5 -5 -5 ---------- Run | Yrd Mat Mat Mat Fac DSF Fac Fac Was Fac Machines Disabled 4 | . 2 . 1 . 1 . . . . Max in Single Turn 1 | . 1 . 1 . 1 . . . . Garrison Access 1 | . . . . . . . . . 1 Machines Repaired . | . . . . . . . . . . Machines Dismantled . | . . . . . . . . . . Machines Sabotaged . | . . . . . . . . . . Overloaded Fab Kills . | . . . . . . . . . . Hacking | -11 -10 -9 -8 -7 -7 -6 -5 -5 -5 --------- Run | Yrd Mat Mat Mat Fac DSF Fac Fac Was Fac Machines Accessed 16 | . 4 3 3 1 . . 2 . 3 Terminals 10 | . 2 3 3 1 . . 1 . . Fabricators 2 | . . . . . . . 1 . 1 Repair Stations 1 | . . . . . . . . . 1 Recycling Units 2 | . 2 . . . . . . . . Scanalyzers . | . . . . . . . . . . Garrison Access 1 | . . . . . . . . . 1 Total Hacks 29 | . 7 5 7 2 . . 3 . 5 Successful 13 | . 4 2 2 1 . . 2 . 2 Failed 16 | . 3 3 5 1 . . 1 . 3 Catastrophic 5 | . . 1 3 . . . . . 1 Database Lockouts . | . . . . . . . . . . Manual 5 | . 3 . 2 . . . . . . Terminals 20 | . 5 5 7 2 . . 1 . . Fabricators 3 | . . . . . . . 2 . 1 Repair Stations 2 | . . . . . . . . . 2 Recycling Units 2 | . 2 . . . . . . . . Scanalyzers . | . . . . . . . . . . Garrison Access 2 | . . . . . . . . . 2 Terminal Hacks 6 | . . 2 2 1 . . 1 . . Open DSF 2 | . . . . 1 . . 1 . . Registered Components 1 | . . 1 . . . . . . . Zone Layout 3 | . . 1 2 . . . . . . Fabricator Hacks 2 | . . . . . . . 1 . 1 Build 2 | . . . . . . . 1 . 1 Repair Station Hacks . | . . . . . . . . . . Recycling Unit Hacks 2 | . 2 . . . . . . . . Report Inventory 2 | . 2 . . . . . . . . Scanalyzer . | . . . . . . . . . . Garrison Access Hacks 1 | . . . . . . . . . 1 Seal Access 1 | . . . . . . . . . 1 Unauthorized Hacks 2 | . 2 . . . . . . . . Terminals 2 | . 2 . . . . . . . . Botnet 2 | . 2 . . . . . . . . Fabricators . | . . . . . . . . . . Repair Stations . | . . . . . . . . . . Recycling Units . | . . . . . . . . . . Scanalyzers . | . . . . . . . . . . Garrison Access . | . . . . . . . . . . Data Cores Recovered . | . . . . . . . . . . Used . | . . . . . . . . . . Hacking Detections 11 | . 2 2 3 1 . . 1 . 2 Full Trace Events 4 | . 1 1 1 . . . . . 1 Feedback Events . | . . . . . . . . . . Feedback Blocked . | . . . . . . . . . . Robot Schematics Acquired . | . . . . . . . . . . Robots Built 2 | . . . . . . . 2 . . Authchips . | . . . . . . . . . . Time 40 | . . . . . . . 40 . . Total Robot Build Rating 2 | . . . . . . . 2 . . Part Schematics Acquired . | . . . . . . . . . . Parts Built 2 | . . . . . . . . . 2 Authchips . | . . . . . . . . . . Time 53 | . . . . . . . . . 53 Total Part Build Rating 12 | . . . . . . . . . 12 Parts Repaired . | . . . . . . . . . . Time . | . . . . . . . . . . Parts Recycled . | . . . . . . . . . . Recycled Matter . | . . . . . . . . . . Retrieved Matter . | . . . . . . . . . . Retrieved Components . | . . . . . . . . . . Parts Scanalyzed . | . . . . . . . . . . Part Schematics Acquired . | . . . . . . . . . . Parts Damaged . | . . . . . . . . . . Bothacking | -11 -10 -9 -8 -7 -7 -6 -5 -5 -5 ------------ Run | Yrd Mat Mat Mat Fac DSF Fac Fac Was Fac Used RIF Installer . | . . . . . . . . . . Robots Hacked . | . . . . . . . . . . Non-combat . | . . . . . . . . . . Combat . | . . . . . . . . . . Robot Hacks Applied . | . . . . . . . . . . Relay Couplers Released . | . . . . . . . . . . Fabnet Peak Effective % . | . . . . . . . . . . Robots Rewired . | . . . . . . . . . . Allies Hacked . | . . . . . . . . . . Hacks Repelled . | . . . . . . . . . . Allies | -11 -10 -9 -8 -7 -7 -6 -5 -5 -5 -------- Run | Yrd Mat Mat Mat Fac DSF Fac Fac Was Fac Total Allies 2 | . . . . . . . 2 . . Largest Group 2 | . . . . . . . 2 . . Highest-Rated Group 20 | . . . . . . . 20 . . Highest-Rated Ally 10 | . . . . . . . 10 . . Total Orders . | . . . . . . . . . . Ally Attacks . | . . . . . . . . . . Total Damage . | . . . . . . . . . . Kills . | . . . . . . . . . . Allies Corrupted . | . . . . . . . . . . Allies Melted . | . . . . . . . . . . Intel | -11 -10 -9 -8 -7 -7 -6 -5 -5 -5 ------- Run | Yrd Mat Mat Mat Fac DSF Fac Fac Was Fac Active Infowar (turns) 1487 | 12 638 218 200 5 158 106 102 37 11 Optics 156 | . . . . . . 17 102 37 . Sensors 453 | . . . 177 5 158 102 . . 11 Seismic 1226 | 12 638 218 200 5 153 . . . . Robot Analysis Total . | . . . . . . . . . . Derelict Logs Recovered . | . . . . . . . . . . Drone Launches . | . . . . . . . . . . Drone Recoveries . | . . . . . . . . . . Exploration | -11 -10 -9 -8 -7 -7 -6 -5 -5 -5 ------------- Run | Yrd Mat Mat Mat Fac DSF Fac Fac Was Fac Turns Passed 2172 | 290 638 218 206 5 158 106 102 47 402 Spaces Moved 2139 | 140 307 323 263 3 73 80 200 97 653 Core 619 | 10 . . . . . 8 63 26 512 Treads 380 | 130 127 . . 1 73 49 . . . Legs . | . . . . . . . . . . Wheels 180 | . 180 . . . . . . . . Hover 747 | . . 323 263 2 . 23 . . 136 Flight 213 | . . . . . . . 137 71 5 Fastest Speed 45 | 50 160 48 52 112 152 50 45 45 45 Average Speed 81 | 152 168 51 64 125 152 116 46 46 52 Slowest Speed 225 | 160 175 52 116 152 152 225 50 50 60 Overloaded Moves . | . . . . . . . . . . Propulsion Burnouts . | . . . . . . . . . . Robots Hopped 3 | . . . . . . . . . 3 Potential Cave-ins . | . . . . . . . . . . Cave-ins Triggered . | . . . . . . . . . . Exploration Rate (%) 32 | 6 47 27 29 . 71 4 9 81 22 Regions Visited 9 Branch Regions . Pre-discovered Areas . | . . . . . . . . . . Known Exits Taken 3 | . . . 1 1 . 1 . . . Unknown Exits Taken 3 | 1 1 1 . . . . . . . Scrap Searched . | . . . . . . . . . . Spaces Dug 3 | . 3 . . . . . . . . Terrain Destroyed 30 | . 30 . . . . . . . . Melee 3 | . 3 . . . . . . . . Projectile . | . . . . . . . . . . AOE 27 | . 27 . . . . . . . . Terrain Rammed . | . . . . . . . . . . Walls Destroyed . | . . . . . . . . . . Machines Disabled . | . . . . . . . . . . Actions | -11 -10 -9 -8 -7 -7 -6 -5 -5 -5 --------- Run | Yrd Mat Mat Mat Fac DSF Fac Fac Was Fac Total 2436 | 179 391 360 287 4 108 91 209 99 708 Wait 77 | . 30 13 . . . . 5 . 29 Move 2127 | 139 306 322 262 2 72 79 200 96 649 Hop 1 | . . . . . . . . . 1 Pick Up 56 | 14 12 7 2 . 11 3 1 2 4 Fast Attach 19 | . 1 . 12 . . 1 1 . 4 Attach 24 | 7 1 3 . 2 5 2 . . 4 Detach 3 | . . . . . 3 . . . . Swap 17 | . 7 4 4 . 2 . . . . Drop 35 | . 12 4 4 . 3 4 2 1 5 Fire 58 | 19 18 7 2 . 10 2 . . . Melee 7 | . 4 . 1 . . . . . 2 Ram 10 | . . . . . . . . . 10 Kick . | . . . . . . . . . . Crush 2 | . . . . . 2 . . . . Escape Stasis . | . . . . . . . . . . Rewire . | . . . . . . . . . . Trap . | . . . . . . . . . . Miscellaneous . | . . . . . . . . . . Route ------- -11/Scrapyard -10/Materials -9/Materials -8/Materials -7/Factory -7/DSF -6/Factory -5/Factory -5/Waste -5/Factory History --------- Turn | Location | Event 6 | -11/Scrapyard | Discovered new exit (range 15) 291 | -11/Scrapyard | Entered Materials 300 | -10/Materials | Build established: Mutant 924 | -10/Materials | Discovered new exit (range 3) 929 | -10/Materials | Entered another Materials area 929 | -9/Materials | Evolved 2 slots: Propulsion x2 1096 | -9/Materials | Discovered new exit (range 15) 1147 | -9/Materials | Entered another Materials area 1147 | -8/Materials | Evolved 2 slots: Utility x2 1335 | -8/Materials | Discovered new exit (range 16) 1352 | -8/Materials | Identified exit to Factory 1353 | -8/Materials | Entered Factory 1353 | -7/Factory | Evolved 2 slots: Propulsion x1, Utility x1 1358 | -7/Factory | Identified exit to DSF 1358 | -7/Factory | Entered DSF 1420 | -7/DSF | Additional patrols routed to DSF 1489 | -7/DSF | Discovered new exit (range 16) 1515 | -7/DSF | Identified exit to Factory 1516 | -7/DSF | Entered Factory 1516 | -6/Factory | Evolved 2 slots: Propulsion x1, Utility x1 1547 | -6/Factory | Lost 3 parts (2u1w) 1616 | -6/Factory | Discovered new exit (range 11) 1621 | -6/Factory | Identified exit to Factory 1622 | -6/Factory | Entered another Factory area 1622 | -5/Factory | Evolved 2 slots: Power x1, Propulsion x1 1649 | -5/Factory | Lost 5 parts (4n1u) 1673 | -5/Factory | Fabricated T-07 Excavator? 1724 | -5/Factory | Manually triggered Chute Trap 1724 | -5/Factory | Sucked down chute 1724 | -5/Factory | Entered Waste 1729 | -5/Waste | Spotted C-40 Crusher 1751 | -5/Waste | Spotted C-40 Crusher 1753 | -5/Waste | Spotted C-40 Crusher 1755 | -5/Waste | Spotted C-40 Crusher 1755 | -5/Waste | Spotted C-40 Crusher 1759 | -5/Waste | Crushed by Compactor (1 part destroyed, 1 dropped) 1761 | -5/Waste | Crushed by Compactor (1 part destroyed) 1766 | -5/Waste | Discovered new exit (range 11) 1767 | -5/Waste | Spotted C-40 Crusher 1771 | -5/Waste | Entered Factory 1859 | -5/Factory | Fabricated Lrn. Proton Cannon? 2027 | -5/Factory | Core integrity fell below 50% 2157 | -5/Factory | Core integrity fell below 20% 2173 | -5/Factory | Destroyed by C-35 Carver with Carbide Saw Last Messages --------------- 02149_ Power Maul broken. 02149_ Destabilizing: Short circuit. 02149_ Broken Power Maul severed. 02150_ Slammed into C-35 Carver. 02152_ Acquired 15 matter. 02159_ Slammed into S-27 Virus. 02159_ Gravmag Array broken. 02159_ Destabilizing: Short circuit. 02160_ System corrupted: Gravmag Array rejected. 02160_ Dropped Broken Gravmag Array. 02161_ Chain reaction triggered in Lgt. Nuclear Core. 02161_ S-27 Virus destroyed. 02161_ TF Node disabled. 02161_ Imp. Sensor Array tumbles out of TF Node. 02161_ Imp. Signal Interpreter tumbles out of TF Node. 02161_ Dropped Lyr. Light Armor Plating. 02161_ Acquired 16 matter. 02169_ Field Propulsion Drive severed. Map ----- +----------------------------------------------------+ | ????????????????????????# #? | | ????????????????????????# ## | | ??????????????????????? """"" | | ???????????????????????? """"" ## | | ???????????????????????????? "" F" #? | | ???????????????????????????? #? | | ???????????????????????????" #? | | ???????????????????????????" #? | | ???????????????????????????? #? | | ???????????????????????????? #? | | ???????????????????????????? #? | | ???????????????????????????? #? | | ???????????????????????????? """"""""" #? | | ????????????????????????????? """"""""" #? | | ?????????????????????????????? ??"""""""" #? | | ????????????????????????????????????"""""" ##? | | ?????????????????????????????????""""""""" #?? | | ??????????????????????????????? """"""""" #?? | | ?????????????????????????????# #?? | | ?????????????????????????????? """"""""" #?? | | ?????????????????????????????? """"""""" #?? | | ?????????????????????????????? """"""""" #?? | | ??????????????????????????#+## """"""""" #?? | | ????????????????????????### """"""""" ### | | ?????????????# ###### """"""""" # | | ?????????????# @c | | ?????????????+ ######s # | | ????????????????????????##% H ###### | | ????????????????????????## ##### ###### | | ????????????????????????#" #??# | | ????????????????????????## #??#T | | ?????????????????????????# #??## | | ?????????????????????????+ = #???# | | ?????????????????????????#### "##???# = | | ????????????????????????????# ##????# =%* | | ????????????????????????????# #??#######+### ! | | ????????????????????????????# #??# # ! | | ????????????????????????????# #??#! # ! | | ????????????????????????????# #??# # ! | | ????????????????????????????# #??# # | | ??????????????############??# #??# """ """ # | | ??????????????? #### #### """ """ ## | | ?????????????????"" ## ## """ """ ## | | ?????????????????"" """ #" ! ## / | | ?????????????????"" """ "!= ##/########## | | ???????????????? """ #"[ ! ## #????????# | | ???????????????? ## ## #????????###+ | | ?????????????????""" """ ### ###/#???????????? | | ?????????????????""" """ #?# ### ##??????????? | | ??????????????????"" """ #?# #??????????? | +----------------------------------------------------+ Best States ------------- Heat Dissipation 40 Energy Generation 16 Energy Capacity 290 Matter Stores 300 Matter Capacity 300 Sight Range 18 Robot Scan Range 16 Terrain Scan Density 10 Armor Coverage 150 Evasion (%) 61 Recoil Reduction 2 Offensive Hacking 14 Authchip Count 1 Item Schematics ----------------- None Robot Schematics ------------------ None Fabricated ------------ T-07 Excavator | x2 | -5/Factory | Preloaded Lrn. Proton Cannon | x2 | -5/Factory | Preloaded Repaired ---------- Nothing Alien Tech Used ----------------- None Achievements -------------- None Challenges ------------ None Game ------ Seed ArcDroneTube Manual? 0 Play Time 00:27:53 Cumulative 132.9 hours Start 2025.08.12 @ 07:12:29 End 2025.08.12 @ 07:35:02 Sessions 1 Manual Loads 0 Difficulty Rogue Special Mode None Game No. 226 Rogue 226 Adventurer 0 Explorer 0 Win Type - Total 2 Types 1/0/1/0/0/0/0/0/0/0 Lore% 73 Gallery% 69 Achievement% 49 Wizard Run 0 Options --------- Layout 1 ASCII 0 Keyboard 0 Movement Mouse Keybinds 0 Fullscreen 1 Font 32/SmallcapsGlow Map View 50x35 Zoom Use 0% Tactical HUD 1 Map Filters NONE Filters NONE Steam 1 RUN: d7144036-1a45-496f-bb4d-1be982aa1cea